[Event "Titled Tuesday Blitz May 23 Late 2023"]
[White "Holt, Conrad"]
[Black "Ilkhomi, Jaloliddin"]
[WhiteFideId "2034387"]
[BlackFideId "14700948"]
[WhiteElo "2592"]
[BlackElo "2045"]
[Result "1-0"]
[Round "10"]
[TimeControl "180+2"]
[Date "2023.05.23"]
[WhiteClock "0:01:22"]
[BlackClock "0:00:45"]

1. d4 {[%clk 0:03:00]}  Nf6 {[%clk 0:02:50]} 2. c4 {[%clk 0:03:00]}  e6 {[%clk 0:02:34]} 3. Nc3 {[%clk 0:03:00]}  Bb4 {[%clk 0:02:34]} 4. Qc2 {[%clk 0:03:00]}  O-O {[%clk 0:02:34]} 5. e4 {[%clk 0:03:01]}  d5 {[%clk 0:02:34]} 6. e5 {[%clk 0:03:01]}  Ne4 {[%clk 0:02:35]} 7. Bd3 {[%clk 0:03:02]}  c5 {[%clk 0:02:35]} 8. Nf3 {[%clk 0:03:02]}  Nd7 {[%clk 0:02:32]} 9. O-O {[%clk 0:03:01]}  cxd4 {[%clk 0:02:30]} 10. Nxe4 {[%clk 0:03:00]}  dxe4 {[%clk 0:02:25]} 11. Bxe4 {[%clk 0:03:01]}  h6 {[%clk 0:02:22]} 12. a3 {[%clk 0:02:59]}  Ba5 {[%clk 0:02:17]} 13. Rd1 {[%clk 0:02:58]}  Bb6 {[%clk 0:02:14]} 14. Bf4 {[%clk 0:02:53]}  Qe7 {[%clk 0:01:50]} 15. Nxd4 {[%clk 0:02:33]}  Nc5 {[%clk 0:01:32]} 16. Bh7+ {[%clk 0:02:24]}  Kh8 {[%clk 0:01:32]} 17. b4 {[%clk 0:02:24]}  Nd7 {[%clk 0:01:28]} 18. Be4 {[%clk 0:02:22]}  a6 {[%clk 0:01:26]} 19. c5 {[%clk 0:02:21]}  Bc7 {[%clk 0:01:26]} 20. c6 {[%clk 0:02:20]}  bxc6 {[%clk 0:01:16]} 21. Nxc6 {[%clk 0:02:17]}  Qe8 {[%clk 0:01:14]} 22. Qd2 {[%clk 0:01:55]}  f5 {[%clk 0:01:02]} 23. exf6 {[%clk 0:01:54]}  Bxf4 {[%clk 0:01:00]} 24. Qxf4 {[%clk 0:01:53]}  Nxf6 {[%clk 0:01:01]} 25. Ne5 {[%clk 0:01:53]}  Nd5 {[%clk 0:00:47]} 26. Ng6+ {[%clk 0:01:51]}  Kg8 {[%clk 0:00:47]} 27. Qxf8+ {[%clk 0:01:49]}  Qxf8 {[%clk 0:00:47]} 28. Nxf8 {[%clk 0:01:49]}  Kxf8 {[%clk 0:00:48]} 29. Bxd5 {[%clk 0:01:48]}  exd5 {[%clk 0:00:48]} 30. Rxd5 {[%clk 0:01:48]}  Be6 {[%clk 0:00:49]} 31. Ra5 {[%clk 0:01:46]}  Bc4 {[%clk 0:00:49]} 32. Rc1 {[%clk 0:01:46]}  Rd8 {[%clk 0:00:49]} 33. f3 {[%clk 0:01:45]}  Bb5 {[%clk 0:00:48]} 34. a4 {[%clk 0:01:44]}  Be2 {[%clk 0:00:48]} 35. Kf2 {[%clk 0:01:42]}  Rd2 {[%clk 0:00:47]} 36. Ke3 {[%clk 0:01:42]}  Rb2 {[%clk 0:00:48]} 37. Rac5 {[%clk 0:01:38]}  Kg8 {[%clk 0:00:46]} 38. R5c2 {[%clk 0:01:36]}  Rxb4 {[%clk 0:00:46]} 39. Kxe2 {[%clk 0:01:35]}  Rxa4 {[%clk 0:00:47]} 40. Rc7 {[%clk 0:01:23]}  Ra2+ {[%clk 0:00:47]} 41. R1c2 {[%clk 0:01:23]}  Ra1 {[%clk 0:00:47]} 42. Ra7 {[%clk 0:01:23]}  Kh8 {[%clk 0:00:45]} 43. Rcc7 {[%clk 0:01:21]}  Ra2+ {[%clk 0:00:45]} 44. Kf1 {[%clk 0:01:21]}  Ra1+ {[%clk 0:00:46]} 45. Kf2 {[%clk 0:01:21]}  Ra2+ {[%clk 0:00:45]} 46. Kg3 {[%clk 0:01:22]} 1-0


[Site "https://www.chess.com"]

[Event "Titled Tuesday Blitz May 23 Late 2023"]
[White "Tatarinov, Dmitry"]
[Black "Filipascu"]
[WhiteFideId "24160067"]
[WhiteElo "2326"]
[BlackElo "2613"]
[Result "1-0"]
[Round "10"]
[TimeControl "180+2"]
[Date "2023.05.23"]
[WhiteClock "0:01:32"]
[BlackClock "0:00:00"]

1. c4 {[%clk 0:03:00]}  e5 {[%clk 0:02:59]} 2. g3 {[%clk 0:03:00]}  Nf6 {[%clk 0:03:00]} 3. Bg2 {[%clk 0:03:00]}  c6 {[%clk 0:02:57]} 4. Nf3 {[%clk 0:02:47]}  e4 {[%clk 0:02:56]} 5. Nd4 {[%clk 0:02:46]}  d5 {[%clk 0:02:56]} 6. cxd5 {[%clk 0:02:46]}  cxd5 {[%clk 0:02:56]} 7. O-O {[%clk 0:02:46]}  Nc6 {[%clk 0:02:54]} 8. Nxc6 {[%clk 0:02:46]}  bxc6 {[%clk 0:02:55]} 9. d3 {[%clk 0:02:47]}  exd3 {[%clk 0:02:54]} 10. exd3 {[%clk 0:02:46]}  Be7 {[%clk 0:02:53]} 11. b3 {[%clk 0:02:44]}  O-O {[%clk 0:02:53]} 12. Bb2 {[%clk 0:02:44]}  Bf5 {[%clk 0:02:50]} 13. Nc3 {[%clk 0:02:44]}  Re8 {[%clk 0:02:36]} 14. Rc1 {[%clk 0:02:44]}  Qc8 {[%clk 0:02:24]} 15. Na4 {[%clk 0:02:44]}  Qa6 {[%clk 0:02:24]} 16. Nc5 {[%clk 0:02:37]}  Bxc5 {[%clk 0:02:21]} 17. Rxc5 {[%clk 0:02:38]}  Bxd3 {[%clk 0:02:21]} 18. Bxf6 {[%clk 0:02:35]}  gxf6 {[%clk 0:02:22]} 19. Qg4+ {[%clk 0:02:31]}  Bg6 {[%clk 0:02:19]} 20. h4 {[%clk 0:02:29]}  h5 {[%clk 0:02:18]} 21. Qf4 {[%clk 0:02:27]}  Kg7 {[%clk 0:02:11]} 22. Rfc1 {[%clk 0:02:26]}  Re6 {[%clk 0:02:05]} 23. Bh3 {[%clk 0:02:21]}  Re4 {[%clk 0:02:02]} 24. Rxc6 {[%clk 0:02:10]}  Qxc6 {[%clk 0:01:33]} 25. Rxc6 {[%clk 0:02:09]}  Rxf4 {[%clk 0:01:33]} 26. gxf4 {[%clk 0:02:10]}  Be4 {[%clk 0:01:32]} 27. Rc8 {[%clk 0:02:05]}  Rxc8 {[%clk 0:01:26]} 28. Bxc8 {[%clk 0:02:06]}  d4 {[%clk 0:01:26]} 29. Kf1 {[%clk 0:02:06]}  Kf8 {[%clk 0:01:21]} 30. Ke1 {[%clk 0:02:06]}  Ke7 {[%clk 0:01:22]} 31. Kd2 {[%clk 0:02:06]}  Kd6 {[%clk 0:01:22]} 32. Ba6 {[%clk 0:02:05]}  Kc5 {[%clk 0:01:12]} 33. Be2 {[%clk 0:02:05]}  Bg6 {[%clk 0:00:53]} 34. a3 {[%clk 0:02:04]}  a5 {[%clk 0:00:53]} 35. f5 {[%clk 0:02:02]}  Bxf5 {[%clk 0:00:52]} 36. Bxh5 {[%clk 0:02:03]}  Be6 {[%clk 0:00:22]} 37. Bd1 {[%clk 0:01:57]}  Kd5 {[%clk 0:00:20]} 38. Bc2 {[%clk 0:01:55]}  Bg4 {[%clk 0:00:20]} 39. f4 {[%clk 0:01:54]}  f5 {[%clk 0:00:18]} 40. Bd3 {[%clk 0:01:51]}  Kc5 {[%clk 0:00:16]} 41. Be2 {[%clk 0:01:49]}  Kd5 {[%clk 0:00:15]} 42. h5 {[%clk 0:01:50]}  Ke6 {[%clk 0:00:06]} 43. b4 {[%clk 0:01:45]}  axb4 {[%clk 0:00:06]} 44. axb4 {[%clk 0:01:46]}  Bh3 {[%clk 0:00:06]} 45. Kd3 {[%clk 0:01:32]}  Bg2 {[%clk 0:00:00]} 46. Kxd4 {[%clk 0:01:32]} 1-0


[Site "https://www.chess.com"]

[Event "Titled Tuesday Blitz May 23 Late 2023"]
[White "Zhigalko, Sergei"]
[Black "Alex_Sahakyan2006"]
[WhiteFideId "13502956"]
[WhiteElo "2626"]
[BlackElo "2687"]
[Result "1-0"]
[Round "10"]
[TimeControl "180+2"]
[Date "2023.05.23"]
[WhiteClock "0:00:27"]
[BlackClock "0:00:03"]

1. e4 {[%clk 0:03:00]}  c5 {[%clk 0:02:59]} 2. Nf3 {[%clk 0:03:01]}  d6 {[%clk 0:02:57]} 3. d4 {[%clk 0:03:00]}  cxd4 {[%clk 0:02:58]} 4. Qxd4 {[%clk 0:03:01]}  Nf6 {[%clk 0:02:56]} 5. Nc3 {[%clk 0:03:01]}  Nc6 {[%clk 0:02:55]} 6. Bb5 {[%clk 0:03:01]}  Bd7 {[%clk 0:02:54]} 7. Bxc6 {[%clk 0:03:01]}  Bxc6 {[%clk 0:02:54]} 8. Bg5 {[%clk 0:03:01]}  e6 {[%clk 0:02:49]} 9. O-O-O {[%clk 0:03:00]}  Be7 {[%clk 0:02:45]} 10. Rhe1 {[%clk 0:02:59]}  O-O {[%clk 0:02:35]} 11. Kb1 {[%clk 0:02:59]}  Qa5 {[%clk 0:02:31]} 12. Qd2 {[%clk 0:02:59]}  Qc7 {[%clk 0:02:12]} 13. Nd4 {[%clk 0:02:59]}  a6 {[%clk 0:02:08]} 14. f3 {[%clk 0:02:59]}  b5 {[%clk 0:02:08]} 15. g4 {[%clk 0:02:59]}  b4 {[%clk 0:02:07]} 16. Nce2 {[%clk 0:02:59]}  a5 {[%clk 0:02:07]} 17. Ng3 {[%clk 0:02:58]}  a4 {[%clk 0:02:04]} 18. Nh5 {[%clk 0:02:55]}  b3 {[%clk 0:01:07]} 19. Bxf6 {[%clk 0:02:52]}  bxa2+ {[%clk 0:01:05]} 20. Ka1 {[%clk 0:02:51]}  Bxf6 {[%clk 0:01:02]} 21. Nxf6+ {[%clk 0:02:50]}  gxf6 {[%clk 0:01:02]} 22. Qh6 {[%clk 0:02:30]}  a3 {[%clk 0:00:58]} 23. b3 {[%clk 0:02:05]}  Bxe4 {[%clk 0:00:53]} 24. c4 {[%clk 0:02:05]}  Qa5 {[%clk 0:00:42]} 25. Re3 {[%clk 0:01:57]}  Bg6 {[%clk 0:00:37]} 26. h4 {[%clk 0:01:56]}  d5 {[%clk 0:00:23]} 27. h5 {[%clk 0:01:53]}  Bb1 {[%clk 0:00:21]} 28. Nc6 {[%clk 0:01:15]}  Qc5 {[%clk 0:00:20]} 29. Qxf6 {[%clk 0:01:09]}  Rfe8 {[%clk 0:00:18]} 30. Re5 {[%clk 0:00:32]}  Rac8 {[%clk 0:00:07]} 31. Rg5+ {[%clk 0:00:28]}  Bg6 {[%clk 0:00:07]} 32. hxg6 {[%clk 0:00:28]}  fxg6 {[%clk 0:00:05]} 33. Rxg6+ {[%clk 0:00:28]}  hxg6 {[%clk 0:00:06]} 34. Qxg6+ {[%clk 0:00:29]}  Kf8 {[%clk 0:00:06]} 35. Qf6+ {[%clk 0:00:29]}  Kg8 {[%clk 0:00:06]} 36. Rh1 {[%clk 0:00:30]}  Qg1+ {[%clk 0:00:03]} 37. Rxg1 {[%clk 0:00:27]} 1-0


[Site "https://www.chess.com"]

[Event "Titled Tuesday Blitz May 23 Late 2023"]
[White "Rosen, Eric"]
[Black "Licznerski, Lukasz"]
[WhiteFideId "2032562"]
[BlackFideId "1179250"]
[WhiteElo "2331"]
[BlackElo "2453"]
[Result "1-0"]
[Round "10"]
[TimeControl "180+2"]
[Date "2023.05.23"]
[WhiteClock "0:02:39"]
[BlackClock "0:01:55"]

1. d4 {[%clk 0:03:00]}  Nf6 {[%clk 0:02:59]} 2. Bf4 {[%clk 0:03:01]}  e6 {[%clk 0:02:56]} 3. e3 {[%clk 0:03:01]}  c5 {[%clk 0:02:56]} 4. Nf3 {[%clk 0:03:02]}  cxd4 {[%clk 0:02:56]} 5. exd4 {[%clk 0:03:02]}  b6 {[%clk 0:02:56]} 6. Nbd2 {[%clk 0:03:02]}  Bb7 {[%clk 0:02:57]} 7. a4 {[%clk 0:02:53]}  a6 {[%clk 0:02:53]} 8. Bd3 {[%clk 0:02:51]}  Be7 {[%clk 0:02:52]} 9. O-O {[%clk 0:02:52]}  O-O {[%clk 0:02:51]} 10. Re1 {[%clk 0:02:53]}  d6 {[%clk 0:02:51]} 11. c3 {[%clk 0:02:52]}  Nbd7 {[%clk 0:02:51]} 12. h3 {[%clk 0:02:52]}  Re8 {[%clk 0:02:51]} 13. Qc2 {[%clk 0:02:40]}  Bf8 {[%clk 0:02:49]} 14. Ng5 {[%clk 0:02:41]}  h6 {[%clk 0:01:55]} 15. Bh7+ {[%clk 0:02:39]} 1-0


[Site "https://www.chess.com"]

[Event "Titled Tuesday Blitz May 23 Late 2023"]
[White "Melikyan, Gnel"]
[Black "Makridis, Dimitrios"]
[WhiteFideId "54109990"]
[BlackFideId "25864475"]
[WhiteElo "2138"]
[BlackElo "2277"]
[Result "1-0"]
[Round "10"]
[TimeControl "180+2"]
[Date "2023.05.23"]
[WhiteClock "0:00:25"]
[BlackClock "0:00:01"]

1. e4 {[%clk 0:02:59]}  c5 {[%clk 0:02:49]} 2. Nf3 {[%clk 0:02:59]}  a6 {[%clk 0:02:26]} 3. Nc3 {[%clk 0:02:56]}  Nc6 {[%clk 0:02:25]} 4. d4 {[%clk 0:02:53]}  cxd4 {[%clk 0:02:24]} 5. Nxd4 {[%clk 0:02:53]}  Nf6 {[%clk 0:02:25]} 6. Nxc6 {[%clk 0:02:51]}  bxc6 {[%clk 0:02:25]} 7. e5 {[%clk 0:02:50]}  Ng8 {[%clk 0:02:25]} 8. Bc4 {[%clk 0:02:50]}  Qc7 {[%clk 0:02:20]} 9. Qe2 {[%clk 0:02:49]}  f6 {[%clk 0:02:13]} 10. Bf4 {[%clk 0:02:44]}  fxe5 {[%clk 0:02:10]} 11. Bxe5 {[%clk 0:02:42]}  d6 {[%clk 0:02:11]} 12. Bg3 {[%clk 0:02:37]}  Nf6 {[%clk 0:02:08]} 13. O-O-O {[%clk 0:02:35]}  e5 {[%clk 0:02:07]} 14. Rhe1 {[%clk 0:02:26]}  Be7 {[%clk 0:02:04]} 15. h3 {[%clk 0:02:25]}  Bb7 {[%clk 0:01:46]} 16. f4 {[%clk 0:02:24]}  e4 {[%clk 0:01:07]} 17. f5 {[%clk 0:02:17]}  O-O-O {[%clk 0:00:59]} 18. Nxe4 {[%clk 0:02:13]}  Nxe4 {[%clk 0:00:56]} 19. Qxe4 {[%clk 0:02:09]}  Rhe8 {[%clk 0:00:56]} 20. Kb1 {[%clk 0:02:04]}  Kb8 {[%clk 0:00:54]} 21. Bf7 {[%clk 0:01:57]}  Bh4 {[%clk 0:00:47]} 22. Qxh4 {[%clk 0:01:36]}  Qxf7 {[%clk 0:00:44]} 23. Bxd6+ {[%clk 0:01:35]}  Ka8 {[%clk 0:00:43]} 24. Rxe8 {[%clk 0:01:25]}  Rxe8 {[%clk 0:00:44]} 25. g4 {[%clk 0:01:23]}  h6 {[%clk 0:00:26]} 26. b3 {[%clk 0:01:17]}  c5 {[%clk 0:00:16]} 27. Bxc5 {[%clk 0:01:13]}  Qc7 {[%clk 0:00:16]} 28. Qf2 {[%clk 0:01:01]}  Be4 {[%clk 0:00:13]} 29. Rd2 {[%clk 0:00:55]}  Rc8 {[%clk 0:00:10]} 30. Bd4 {[%clk 0:00:54]}  Qc6 {[%clk 0:00:09]} 31. Kb2 {[%clk 0:00:54]}  a5 {[%clk 0:00:08]} 32. a4 {[%clk 0:00:50]}  Rb8 {[%clk 0:00:07]} 33. Be5 {[%clk 0:00:47]}  Rc8 {[%clk 0:00:05]} 34. Qe2 {[%clk 0:00:39]}  Kb7 {[%clk 0:00:02]} 35. Qb5+ {[%clk 0:00:38]}  Qxb5 {[%clk 0:00:02]} 36. axb5 {[%clk 0:00:39]}  Kb6 {[%clk 0:00:02]} 37. Bxg7 {[%clk 0:00:38]}  Kxb5 {[%clk 0:00:02]} 38. Bxh6 {[%clk 0:00:39]}  a4 {[%clk 0:00:01]} 39. bxa4+ {[%clk 0:00:39]}  Kxa4 {[%clk 0:00:02]} 40. Bg7 {[%clk 0:00:39]}  Kb5 {[%clk 0:00:03]} 41. Bd4 {[%clk 0:00:38]}  Bd5 {[%clk 0:00:03]} 42. Be3 {[%clk 0:00:35]}  Bc4 {[%clk 0:00:02]} 43. g5 {[%clk 0:00:34]}  Rb8 {[%clk 0:00:01]} 44. Kc3 {[%clk 0:00:33]}  Bf7 {[%clk 0:00:01]} 45. g6 {[%clk 0:00:33]}  Rc8+ {[%clk 0:00:02]} 46. Kb2 {[%clk 0:00:33]}  Bc4 {[%clk 0:00:02]} 47. f6 {[%clk 0:00:33]}  Kc6 {[%clk 0:00:02]} 48. f7 {[%clk 0:00:32]}  Rb8+ {[%clk 0:00:03]} 49. Kc3 {[%clk 0:00:32]}  Be6 {[%clk 0:00:02]} 50. Bh6 {[%clk 0:00:25]}  Rc8 {[%clk 0:00:01]} 51. f8=Q {[%clk 0:00:25]}  Rxf8 {[%clk 0:00:01]} 52. Bxf8 {[%clk 0:00:25]} 1-0


[Site "https://www.chess.com"]

[Event "Titled Tuesday Blitz May 23 Late 2023"]
[White "Potapova, Margarita"]
[Black "Papasimakopoulos, Alexandros"]
[WhiteFideId "14126869"]
[BlackFideId "4244125"]
[WhiteElo "2244"]
[BlackElo "2359"]
[Result "0-1"]
[Round "10"]
[TimeControl "180+2"]
[Date "2023.05.23"]
[WhiteClock "0:00:08"]
[BlackClock "0:00:18"]

1. d4 {[%clk 0:03:00]}  d5 {[%clk 0:02:35]} 2. c4 {[%clk 0:03:00]}  e5 {[%clk 0:02:35]} 3. dxe5 {[%clk 0:02:59]}  d4 {[%clk 0:02:36]} 4. Nf3 {[%clk 0:02:59]}  Nc6 {[%clk 0:02:36]} 5. a3 {[%clk 0:02:55]}  a5 {[%clk 0:02:29]} 6. e3 {[%clk 0:02:50]}  Bg4 {[%clk 0:02:21]} 7. exd4 {[%clk 0:02:45]}  Bxf3 {[%clk 0:02:18]} 8. Qxf3 {[%clk 0:02:27]}  Qxd4 {[%clk 0:02:18]} 9. Qd1 {[%clk 0:02:27]}  Qxd1+ {[%clk 0:02:06]} 10. Kxd1 {[%clk 0:02:27]}  O-O-O+ {[%clk 0:02:07]} 11. Bd2 {[%clk 0:01:49]}  Nxe5 {[%clk 0:02:00]} 12. Kc2 {[%clk 0:01:17]}  Nf6 {[%clk 0:01:52]} 13. f3 {[%clk 0:01:13]}  Nc6 {[%clk 0:01:49]} 14. Be3 {[%clk 0:01:08]}  Nd4+ {[%clk 0:01:41]} 15. Bxd4 {[%clk 0:01:07]}  Rxd4 {[%clk 0:01:42]} 16. Nc3 {[%clk 0:01:07]}  Bc5 {[%clk 0:01:41]} 17. Bd3 {[%clk 0:01:05]}  Rhd8 {[%clk 0:01:32]} 18. Rad1 {[%clk 0:01:06]}  g6 {[%clk 0:01:27]} 19. Be2 {[%clk 0:00:51]}  c6 {[%clk 0:01:22]} 20. Na4 {[%clk 0:00:39]}  Ba7 {[%clk 0:01:21]} 21. b4 {[%clk 0:00:36]}  axb4 {[%clk 0:01:17]} 22. axb4 {[%clk 0:00:37]}  Re8 {[%clk 0:01:15]} 23. Bd3 {[%clk 0:00:32]}  Nd7 {[%clk 0:01:08]} 24. Rhe1 {[%clk 0:00:24]}  Kd8 {[%clk 0:00:55]} 25. Rxe8+ {[%clk 0:00:22]}  Kxe8 {[%clk 0:00:56]} 26. Re1+ {[%clk 0:00:21]}  Kf8 {[%clk 0:00:53]} 27. Nc3 {[%clk 0:00:19]}  Rh4 {[%clk 0:00:50]} 28. h3 {[%clk 0:00:19]}  Bd4 {[%clk 0:00:49]} 29. Ne2 {[%clk 0:00:19]}  Bf2 {[%clk 0:00:46]} 30. Ra1 {[%clk 0:00:18]}  Ne5 {[%clk 0:00:45]} 31. Ra8+ {[%clk 0:00:18]}  Kg7 {[%clk 0:00:45]} 32. Rb8 {[%clk 0:00:17]}  Nxc4 {[%clk 0:00:43]} 33. Rxb7 {[%clk 0:00:17]}  Ne3+ {[%clk 0:00:43]} 34. Kd2 {[%clk 0:00:16]}  Nxg2 {[%clk 0:00:35]} 35. Rc7 {[%clk 0:00:13]}  Be1+ {[%clk 0:00:28]} 36. Kc2 {[%clk 0:00:12]}  Bxb4 {[%clk 0:00:27]} 37. Rxc6 {[%clk 0:00:12]}  Ne1+ {[%clk 0:00:26]} 38. Kd1 {[%clk 0:00:08]}  Nxd3 {[%clk 0:00:26]} 39. Ng1 {[%clk 0:00:07]}  h5 {[%clk 0:00:17]} 40. Rb6 {[%clk 0:00:07]}  Bc5 {[%clk 0:00:17]} 41. Rb3 {[%clk 0:00:07]}  Bxg1 {[%clk 0:00:17]} 42. Rxd3 {[%clk 0:00:08]}  Rxh3 {[%clk 0:00:18]} 43. Ke2 {[%clk 0:00:08]}  Rh2+ {[%clk 0:00:18]} 44. Kf1 {[%clk 0:00:08]}  Bb6 {[%clk 0:00:18]} 45. Rd7 {[%clk 0:00:09]}  Rb2 {[%clk 0:00:18]} 46. Ke1 {[%clk 0:00:10]}  h4 {[%clk 0:00:18]} 47. Kf1 {[%clk 0:00:10]}  h3 {[%clk 0:00:18]} 48. Rd4 {[%clk 0:00:08]}  Bxd4 {[%clk 0:00:18]} 0-1


[Site "https://www.chess.com"]

[Event "Titled Tuesday Blitz May 23 Late 2023"]
[White "Badmatsyrenov, Oleg"]
[Black "Sivakumar, Shaaketh"]
[WhiteFideId "24115762"]
[BlackFideId "30940176"]
[WhiteElo "2396"]
[BlackElo "2174"]
[Result "0-1"]
[Round "10"]
[TimeControl "180+2"]
[Date "2023.05.23"]
[WhiteClock "0:00:08"]
[BlackClock "0:00:27"]

1. e4 {[%clk 0:03:00]}  e6 {[%clk 0:02:59]} 2. d4 {[%clk 0:03:00]}  d5 {[%clk 0:02:57]} 3. Nc3 {[%clk 0:03:00]}  Bb4 {[%clk 0:02:54]} 4. a3 {[%clk 0:03:00]}  Bxc3+ {[%clk 0:02:45]} 5. bxc3 {[%clk 0:03:01]}  c5 {[%clk 0:02:44]} 6. e5 {[%clk 0:03:00]}  Ne7 {[%clk 0:02:38]} 7. Qg4 {[%clk 0:02:57]}  Kf8 {[%clk 0:02:38]} 8. Nf3 {[%clk 0:02:57]}  Qa5 {[%clk 0:02:38]} 9. Bd2 {[%clk 0:02:56]}  Qa4 {[%clk 0:02:38]} 10. Bd3 {[%clk 0:02:54]}  b6 {[%clk 0:02:38]} 11. O-O {[%clk 0:02:53]}  Nbc6 {[%clk 0:02:36]} 12. Ra2 {[%clk 0:02:48]}  Ng6 {[%clk 0:02:37]} 13. h4 {[%clk 0:02:47]}  Ngxe5 {[%clk 0:02:34]} 14. Nxe5 {[%clk 0:02:47]}  Nxe5 {[%clk 0:02:34]} 15. Qg3 {[%clk 0:02:47]}  Nxd3 {[%clk 0:02:32]} 16. Qd6+ {[%clk 0:02:48]}  Ke8 {[%clk 0:02:32]} 17. cxd3 {[%clk 0:02:48]}  Qd7 {[%clk 0:02:27]} 18. Qg3 {[%clk 0:02:49]}  f6 {[%clk 0:02:22]} 19. dxc5 {[%clk 0:02:47]}  bxc5 {[%clk 0:02:23]} 20. Be3 {[%clk 0:02:47]}  Qe7 {[%clk 0:02:18]} 21. Rb2 {[%clk 0:02:43]}  Ba6 {[%clk 0:02:17]} 22. Rfb1 {[%clk 0:02:38]}  Kf7 {[%clk 0:02:15]} 23. Bxc5 {[%clk 0:02:31]}  Qd7 {[%clk 0:02:05]} 24. h5 {[%clk 0:02:26]}  Rac8 {[%clk 0:02:03]} 25. d4 {[%clk 0:02:22]}  Qc7 {[%clk 0:01:52]} 26. Qg4 {[%clk 0:02:19]}  Rb8 {[%clk 0:01:49]} 27. h6 {[%clk 0:02:09]}  g6 {[%clk 0:01:48]} 28. Bb4 {[%clk 0:02:07]}  Bd3 {[%clk 0:01:47]} 29. Re1 {[%clk 0:02:07]}  Bf5 {[%clk 0:01:47]} 30. Qe2 {[%clk 0:02:05]}  a5 {[%clk 0:01:39]} 31. g4 {[%clk 0:02:01]}  Be4 {[%clk 0:01:32]} 32. Bc5 {[%clk 0:01:45]}  Qf4 {[%clk 0:01:26]} 33. Rb6 {[%clk 0:00:54]}  Rxb6 {[%clk 0:01:21]} 34. Bxb6 {[%clk 0:00:55]}  Rb8 {[%clk 0:01:20]} 35. f3 {[%clk 0:00:37]}  Qxf3 {[%clk 0:00:54]} 36. Qxf3 {[%clk 0:00:36]}  Bxf3 {[%clk 0:00:55]} 37. Bxa5 {[%clk 0:00:36]}  Rb2 {[%clk 0:00:53]} 38. Bc7 {[%clk 0:00:30]}  Bxg4 {[%clk 0:00:49]} 39. Ra1 {[%clk 0:00:30]}  Be2 {[%clk 0:00:46]} 40. a4 {[%clk 0:00:23]}  g5 {[%clk 0:00:46]} 41. a5 {[%clk 0:00:23]}  Ba6 {[%clk 0:00:46]} 42. Bg3 {[%clk 0:00:18]}  Kg6 {[%clk 0:00:43]} 43. Re1 {[%clk 0:00:17]}  Kf7 {[%clk 0:00:40]} 44. Bd6 {[%clk 0:00:14]}  f5 {[%clk 0:00:38]} 45. Be5 {[%clk 0:00:13]}  f4 {[%clk 0:00:37]} 46. Rc1 {[%clk 0:00:11]}  Ra2 {[%clk 0:00:37]} 47. Bc7 {[%clk 0:00:10]}  Bd3 {[%clk 0:00:35]} 48. Re1 {[%clk 0:00:10]}  Be4 {[%clk 0:00:34]} 49. c4 {[%clk 0:00:10]}  f3 {[%clk 0:00:26]} 50. Bg3 {[%clk 0:00:09]}  Rg2+ {[%clk 0:00:26]} 51. Kf1 {[%clk 0:00:09]}  Bd3+ {[%clk 0:00:27]} 52. Re2 {[%clk 0:00:07]}  Bxe2+ {[%clk 0:00:27]} 53. Ke1 {[%clk 0:00:08]}  Rxg3 {[%clk 0:00:28]} 54. c5 {[%clk 0:00:09]}  Rg1+ {[%clk 0:00:28]} 55. Kf2 {[%clk 0:00:09]}  Rg2+ {[%clk 0:00:28]} 56. Ke3 {[%clk 0:00:09]}  Bd1 {[%clk 0:00:26]} 57. c6 {[%clk 0:00:08]}  f2 {[%clk 0:00:26]} 58. c7 {[%clk 0:00:07]}  f1=Q {[%clk 0:00:26]} 59. c8=Q {[%clk 0:00:08]}  Qe2# {[%clk 0:00:27]} 0-1


[Site "https://www.chess.com"]

[Event "Titled Tuesday Blitz May 23 Late 2023"]
[White "Deviprasath, Sharvesh"]
[Black "Matinian, Nikita"]
[WhiteFideId "30938228"]
[BlackFideId "24129100"]
[WhiteElo "2168"]
[BlackElo "2422"]
[Result "0-1"]
[Round "10"]
[TimeControl "180+2"]
[Date "2023.05.23"]
[WhiteClock "0:00:12"]
[BlackClock "0:00:09"]

1. e4 {[%clk 0:03:00]}  g6 {[%clk 0:02:59]} 2. d4 {[%clk 0:03:00]}  Bg7 {[%clk 0:02:59]} 3. Nc3 {[%clk 0:03:01]}  d6 {[%clk 0:03:00]} 4. f4 {[%clk 0:03:01]}  a6 {[%clk 0:03:00]} 5. Nf3 {[%clk 0:03:01]}  b5 {[%clk 0:03:00]} 6. Bd3 {[%clk 0:03:00]}  Bb7 {[%clk 0:03:00]} 7. O-O {[%clk 0:03:01]}  Nd7 {[%clk 0:02:57]} 8. e5 {[%clk 0:03:00]}  c5 {[%clk 0:02:54]} 9. Ne4 {[%clk 0:02:56]}  c4 {[%clk 0:02:51]} 10. f5 {[%clk 0:02:47]}  cxd3 {[%clk 0:02:51]} 11. f6 {[%clk 0:02:48]}  Bf8 {[%clk 0:02:33]} 12. fxe7 {[%clk 0:02:43]}  Bxe7 {[%clk 0:02:32]} 13. Nxd6+ {[%clk 0:02:42]}  Bxd6 {[%clk 0:02:32]} 14. exd6 {[%clk 0:02:40]}  dxc2 {[%clk 0:02:13]} 15. Qxc2 {[%clk 0:02:37]}  Kf8 {[%clk 0:02:11]} 16. Qb3 {[%clk 0:02:33]}  Ngf6 {[%clk 0:02:09]} 17. Bh6+ {[%clk 0:02:31]}  Kg8 {[%clk 0:02:07]} 18. Rae1 {[%clk 0:02:24]}  Bd5 {[%clk 0:02:05]} 19. Qd3 {[%clk 0:02:23]}  Bc4 {[%clk 0:01:55]} 20. Qd2 {[%clk 0:02:17]}  Bxf1 {[%clk 0:01:54]} 21. Rxf1 {[%clk 0:02:17]}  Ng4 {[%clk 0:01:49]} 22. Bg5 {[%clk 0:02:11]}  f6 {[%clk 0:01:38]} 23. Bh4 {[%clk 0:02:07]}  Kg7 {[%clk 0:01:34]} 24. Ne5 {[%clk 0:02:03]}  h5 {[%clk 0:01:10]} 25. Nxd7 {[%clk 0:01:42]}  Qxd7 {[%clk 0:01:08]} 26. h3 {[%clk 0:01:41]}  Rhf8 {[%clk 0:00:49]} 27. hxg4 {[%clk 0:01:15]}  hxg4 {[%clk 0:00:50]} 28. Bg3 {[%clk 0:01:03]}  Rfe8 {[%clk 0:00:50]} 29. Rc1 {[%clk 0:01:00]}  Rac8 {[%clk 0:00:50]} 30. Rc5 {[%clk 0:00:58]}  g5 {[%clk 0:00:35]} 31. Qd3 {[%clk 0:00:55]}  Qe6 {[%clk 0:00:29]} 32. Kh2 {[%clk 0:00:47]}  Rcd8 {[%clk 0:00:17]} 33. Rc7+ {[%clk 0:00:44]}  Rd7 {[%clk 0:00:18]} 34. d5 {[%clk 0:00:42]}  Qf7 {[%clk 0:00:17]} 35. Qf5 {[%clk 0:00:32]}  Red8 {[%clk 0:00:17]} 36. b4 {[%clk 0:00:24]}  Kg8 {[%clk 0:00:17]} 37. Kg1 {[%clk 0:00:18]}  Kg7 {[%clk 0:00:14]} 38. Kh2 {[%clk 0:00:18]}  Qe8 {[%clk 0:00:12]} 39. Kg1 {[%clk 0:00:17]}  Qe3+ {[%clk 0:00:10]} 40. Kh2 {[%clk 0:00:12]}  Rh8+ {[%clk 0:00:09]} 0-1


[Site "https://www.chess.com"]